[Event "USA-ch Juniors 2020"]
[Site "Saint Louis"]
[Date "2020.10.14"]
[Round "4.4"]
[White "Yoo, Christopher Woojin"]
[Black "Shen, Christopher"]
[Result "1-0"]
[ECO "A05"]
[WhiteElo "2455"]
[BlackElo "2354"]
[Annotator "RC"]
[PlyCount "79"]
[EventDate "2020.10.13"]
[EventType "tourn"]
[EventCountry "USA"]
[SourceTitle "playchess.com"]
[Source "ChessBase"]
[SourceQuality "1"]
[TimeControl "1500+5"]

1. Nf3 {[%emt 0:00:05]} Nf6 {[%emt 0:00:05]} 2. b3 {[%emt 0:00:02]} g6 {[%emt 0:00:10]} 3. Bb2 {[%emt 0:00:02]} Bg7 {[%emt 0:00:01]} 4. g3 {[%emt 0:00:01]} O-O {[%emt 0:00:06]} 5. Bg2 {[%emt 0:00:02]} d5 {[%emt 0:00:34]} 6. c4 {[%emt 0:00:06]} c6 {[%emt 0:00:11]} 7. O-O {[%emt 0:00:03]} Re8 {[%emt 0:00:21]} 8. d4 {[%emt 0:01:39]} Nbd7 {[%emt 0:02:43]} 9. Nbd2 {[%emt 0:00:36]} a5 {[%emt 0:00:22]} 10. a3 {[%emt 0:01:44]} a4 {[%emt 0:00:56]} 11. cxd5 {[%emt 0:02:25]} cxd5 {[%emt 0:00:24]} 12. b4 {[%emt 0:00:05]} Nb6 {[%emt 0:01:22]} 13. e3 {[%emt 0:00:57]} Bd7 {[%emt 0:00:38]} 14. Qe2 {[%emt 0:00:41]} e6 {[%emt 0:01:32]} 15. Rac1 {[%emt 0:01:10]} Qe7 {[%emt 0:00:41]} 16. Ne5 {[%emt 0:01:04]} Rec8 {[%emt 0:01:14]} 17. e4 {[%emt 0:00:57]} dxe4 {[%emt 0:03:48]} 18. Nxe4 {[%emt 0:00:17]} Nxe4 {[%emt 0:00:14]} 19. Bxe4 {[%emt 0:00:01]} Be8 {[%emt 0:00:05]} 20. Rc5 {[%emt 0:01:23]} Nd5 {[%emt 0:02:16]} 21. Rfc1 {[%emt 0:00:57]} Rxc5 {[%emt 0:00:39]} 22. dxc5 {[%emt 0:00:34]} Rd8 {[%emt 0:00:21]} 23. Nc4 {[%emt 0:01:12]} Qg5 {[%emt 0:03:07]} 24. h4 {[%emt 0:00:09]} Qh6 {[%emt 0:00:37]} 25. Rd1 {[%emt 0:01:19]} Bxb2 {[%emt 0:01:05]} 26. Qxb2 {[%emt 0:00:19]} Qh5 {[%emt 0:00:52]} 27. Rd2 {[%emt 0:01:00]} Qg4 {[%emt 0:00:21]} 28. Rd4 {[%emt 0:00:51]} Qh5 {[%emt 0:01:15]} 29. Nd6 {[%emt 0:01:11]} b6 {[%emt 0:00:19]} 30. Bxd5 {[%emt 0:00:07]} exd5 {[%emt 0:00:01]} 31. Rf4 {[%emt 0:00:19]} Qd1+ {[%emt 0:00:26]} 32. Kh2 {[%emt 0:00:05]} Qe1 {[%emt 0:00:03]} 33. Qf6 {[%emt 0:01:10]} Rd7 {[%emt 0:00:20]} 34. c6 {[%emt 0:00:03]} Re7 {[%emt 0:00:17]} 35. Nxe8 {[%emt 0:00:11]} Rxe8 {[%emt 0:00:00]} 36. Qxf7+ {[%emt 0:00:01]} Kh8 {[%emt 0:00:01]} 37. c7 {[%emt 0:00:04]} Qe5 {[%emt 0:00:28]} 38. Qf8+ {[%emt 0:00:03]} Rxf8 {[%emt 0:00:02]} 39. Rxf8+ {[%emt 0:00:00]} Kg7 {[%emt 0:00:00]} 40. c8=Q {[%emt 0:00:02]} 1-0

[Event "USA-ch Juniors 2020"]
[Site "Saint Louis"]
[Date "2020.10.14"]
[Round "4.5"]
[White "Tiglon, Bryce"]
[Black "Burke, John M"]
[Result "1/2-1/2"]
[ECO "C78"]
[WhiteElo "2393"]
[BlackElo "2538"]
[Annotator "RC"]
[PlyCount "48"]
[EventDate "2020.10.13"]
[EventType "tourn"]
[EventCountry "USA"]
[SourceTitle "playchess.com"]
[Source "ChessBase"]
[SourceQuality "1"]
[TimeControl "1500+5"]

1. e4 {[%emt 0:00:05]} e5 {[%emt 0:00:05]} 2. Nf3 {[%emt 0:00:02]} Nc6 {[%emt 0:00:02]} 3. Bb5 {[%emt 0:00:01]} a6 {[%emt 0:00:03]} 4. Ba4 {[%emt 0:00:02]} Nf6 {[%emt 0:00:03]} 5. O-O {[%emt 0:00:04]} b5 {[%emt 0:00:05]} 6. Bb3 {[%emt 0:00:04]} Bc5 {[%emt 0:00:03]} 7. a4 {[%emt 0:00:06]} Rb8 {[%emt 0:00:25]} 8. axb5 {[%emt 0:00:22]} axb5 {[%emt 0:00:03]} 9. Nxe5 {[%emt 0:00:01]} Nxe5 {[%emt 0:00:13]} 10. d4 {[%emt 0:00:01]} Bxd4 {[%emt 0:00:23]} 11. Qxd4 {[%emt 0:00:00]} d6 {[%emt 0:00:02]} 12. f4 {[%emt 0:00:09]} Nc6 {[%emt 0:01:12]} 13. Qc3 {[%emt 0:00:04]} Ne7 {[%emt 0:00:27]} 14. Ra7 {[%emt 0:00:39]} c5 {[%emt 0:02:10]} 15. e5 {[%emt 0:00:14]} Nfd5 {[%emt 0:00:44]} 16. Bxd5 {[%emt 0:00:30]} Nxd5 {[%emt 0:00:03]} 17. Qf3 {[%emt 0:00:12]} Qb6 {[%emt 0:01:02]} 18. Rxf7 {[%emt 0:00:04]} c4+ {[%emt 0:00:01]} 19. Kh1 {[%emt 0:00:06]} Kxf7 {[%emt 0:00:04]} 20. Qxd5+ {[%emt 0:00:01]} Be6 {[%emt 0:00:01]} 21. Qd1 {[%emt 0:00:01]} Bf5 {[%emt 0:00:22]} 22. Qd5+ {[%emt 0:00:02]} Be6 {[%emt 0:00:46]} 23. Qd1 {[%emt 0:00:06]} Bf5 {[%emt 0:01:28]} 24. Qd5+ {[%emt 0:00:05]} Be6 {[%emt 0:00:28]} 1/2-1/2

[Event "USA-ch Juniors 2020"]
[Site "Saint Louis"]
[Date "2020.10.14"]
[Round "5.3"]
[White "Checa, Nicolas"]
[Black "Yoo, Christopher Woojin"]
[Result "1-0"]
[ECO "A58"]
[WhiteElo "2527"]
[BlackElo "2455"]
[Annotator "RC"]
[PlyCount "95"]
[EventDate "2020.10.13"]
[EventType "tourn"]
[EventCountry "USA"]
[SourceTitle "playchess.com"]
[Source "ChessBase"]
[SourceQuality "1"]
[TimeControl "1500+5"]

1. d4 {[%emt 0:00:05]} Nf6 {[%emt 0:00:05]} 2. c4 {[%emt 0:00:05]} c5 {[%emt 0:00:02]} 3. d5 {[%emt 0:00:05]} b5 {[%emt 0:00:01]} 4. cxb5 {[%emt 0:00:00]} a6 {[%emt 0:00:04]} 5. bxa6 {[%emt 0:00:11]} e6 {[%emt 0:00:02]} 6. Nc3 {[%emt 0:01:24]} exd5 {[%emt 0:00:02]} 7. Nxd5 {[%emt 0:00:13]} Be7 {[%emt 0:00:02]} 8. Nxe7 {[%emt 0:02:09]} Qxe7 {[%emt 0:00:02]} 9. e3 {[%emt 0:00:02]} O-O {[%emt 0:00:05]} 10. Nf3 {[%emt 0:00:03]} d5 {[%emt 0:00:06]} 11. Bd3 {[%emt 0:00:24]} Rd8 {[%emt 0:01:21]} 12. O-O {[%emt 0:00:08]} Ne4 {[%emt 0:00:32]} 13. b3 {[%emt 0:02:09]} Qf6 {[%emt 0:04:11]} 14. Bb2 {[%emt 0:01:28]} Qxb2 {[%emt 0:00:26]} 15. Bxe4 {[%emt 0:00:03]} Bxa6 {[%emt 0:04:01]} 16. Re1 {[%emt 0:02:23]} Nc6 {[%emt 0:03:11]} 17. Bxd5 {[%emt 0:01:23]} Nb4 {[%emt 0:01:31]} 18. e4 {[%emt 0:00:07]} Bb7 {[%emt 0:02:31]} 19. Re2 {[%emt 0:05:05]} Qf6 {[%emt 0:00:58]} 20. Rd2 {[%emt 0:00:43]} Nxd5 {[%emt 0:00:41]} 21. exd5 {[%emt 0:00:04]} Rxd5 {[%emt 0:01:30]} 22. Rxd5 {[%emt 0:00:28]} Bxd5 {[%emt 0:00:00]} 23. Rc1 {[%emt 0:00:02]} Bxf3 {[%emt 0:00:22]} 24. Qxf3 {[%emt 0:00:00]} Qxf3 {[%emt 0:00:38]} 25. gxf3 {[%emt 0:00:00]} Rxa2 {[%emt 0:00:00]} 26. Rxc5 {[%emt 0:00:37]} g6 {[%emt 0:00:04]} 27. f4 {[%emt 0:00:22]} Kg7 {[%emt 0:00:32]} 28. Rc6 {[%emt 0:01:38]} Rb2 {[%emt 0:00:37]} 29. Rb6 {[%emt 0:00:04]} f5 {[%emt 0:01:25]} 30. Kg2 {[%emt 0:00:09]} Kh6 {[%emt 0:00:01]} 31. Rb7 {[%emt 0:00:07]} g5 {[%emt 0:00:36]} 32. fxg5+ {[%emt 0:01:16]} Kxg5 {[%emt 0:00:00]} 33. Kg3 {[%emt 0:00:01]} f4+ {[%emt 0:00:17]} 34. Kf3 {[%emt 0:00:06]} h6 {[%emt 0:00:55]} 35. Rb6 {[%emt 0:00:52]} h5 {[%emt 0:00:27]} 36. Rb5+ {[%emt 0:00:47]} Kg6 {[%emt 0:00:08]} 37. b4 {[%emt 0:01:01]} Kh6 {[%emt 0:00:31]} 38. h4 {[%emt 0:00:25]} Kg6 {[%emt 0:00:02]} 39. Rg5+ {[%emt 0:00:05]} Kh6 {[%emt 0:00:01]} 40. b5 {[%emt 0:00:25]} Rb4 {[%emt 0:00:01]} 41. Rd5 {[%emt 0:00:17]} Kg6 {[%emt 0:00:10]} 42. Rc5 {[%emt 0:00:12]} Rb2 {[%emt 0:00:09]} 43. Kxf4 {[%emt 0:00:36]} Rxf2+ {[%emt 0:00:02]} 44. Ke5 {[%emt 0:00:01]} Rf5+ {[%emt 0:00:03]} 45. Kd6 {[%emt 0:00:12]} Rf4 {[%emt 0:00:02]} 46. b6 {[%emt 0:00:08]} Rxh4 {[%emt 0:00:02]} 47. b7 {[%emt 0:00:03]} Rb4 {[%emt 0:00:03]} 48. Kc7 {[%emt 0:00:03]} 1-0

[Event "USA-ch Juniors 2020"]
[Site "Saint Louis"]
[Date "2020.10.14"]
[Round "5.4"]
[White "Jacobson, Brandon"]
[Black "Sheng, Joshua"]
[Result "1/2-1/2"]
[ECO "D11"]
[WhiteElo "2487"]
[BlackElo "2474"]
[Annotator "RC"]
[PlyCount "41"]
[EventDate "2020.10.13"]
[EventType "tourn"]
[EventCountry "USA"]
[SourceTitle "playchess.com"]
[Source "ChessBase"]
[SourceQuality "1"]
[TimeControl "1500+5"]

1. d4 {[%emt 0:00:05]} d5 {[%emt 0:00:05]} 2. c4 {[%emt 0:00:01]} c6 {[%emt 0:00:01]} 3. Nf3 {[%emt 0:00:03]} Nf6 {[%emt 0:00:01]} 4. e3 {[%emt 0:00:00]} e6 {[%emt 0:00:01]} 5. Bd3 {[%emt 0:00:05]} dxc4 {[%emt 0:00:09]} 6. Bxc4 {[%emt 0:00:02]} Nbd7 {[%emt 0:00:01]} 7. O-O {[%emt 0:00:13]} Bd6 {[%emt 0:00:03]} 8. Be2 {[%emt 0:00:47]} O-O {[%emt 0:00:28]} 9. Nbd2 {[%emt 0:00:02]} Bc7 {[%emt 0:02:44]} 10. Nc4 {[%emt 0:07:49]} b5 {[%emt 0:01:27]} 11. Nce5 {[%emt 0:00:36]} Bb7 {[%emt 0:01:12]} 12. Qc2 {[%emt 0:04:06]} Rc8 {[%emt 0:01:08]} 13. b4 {[%emt 0:00:15]} Nxe5 {[%emt 0:03:24]} 14. Nxe5 {[%emt 0:00:01]} c5 {[%emt 0:04:02]} 15. bxc5 {[%emt 0:01:37]} Bxe5 {[%emt 0:00:11]} 16. dxe5 {[%emt 0:00:00]} Nd7 {[%emt 0:00:01]} 17. Ba3 {[%emt 0:05:27]} Nxe5 {[%emt 0:06:05]} 18. f4 {[%emt 0:01:11]} Qa5 {[%emt 0:01:56]} 19. Qb2 {[%emt 0:01:47]} Nc6 {[%emt 0:00:28]} 20. Rab1 {[%emt 0:01:24]} Ba8 {[%emt 0:01:38]} 21. Bf3 {[%emt 0:00:31]} 1/2-1/2

[Event "USA-ch Juniors 2020"]
[Site "Saint Louis"]
[Date "2020.10.15"]
[Round "9.5"]
[White "Sheng, Joshua"]
[Black "Yoo, Christopher Woojin"]
[Result "0-1"]
[ECO "A10"]
[WhiteElo "2474"]
[BlackElo "2455"]
[Annotator "RC"]
[PlyCount "72"]
[EventDate "2020.10.13"]
[EventType "tourn"]
[EventCountry "USA"]
[SourceTitle "playchess.com"]
[Source "ChessBase"]
[SourceQuality "1"]
[TimeControl "1500+5"]

1. c4 {[%emt 0:00:05]} g6 {[%emt 0:00:05]} 2. Nc3 {[%emt 0:00:10]} Bg7 {[%emt 0:00:02]} 3. d4 {[%emt 0:00:01]} e6 {[%emt 0:00:38]} 4. Nf3 {[%emt 0:00:30]} Ne7 {[%emt 0:00:02]} 5. g3 {[%emt 0:00:05]} O-O {[%emt 0:00:04]} 6. Bg2 {[%emt 0:00:01]} d5 {[%emt 0:00:10]} 7. O-O {[%emt 0:00:09]} dxc4 {[%emt 0:00:05]} 8. Qa4 {[%emt 0:01:02]} Nbc6 {[%emt 0:02:30]} 9. Rd1 {[%emt 0:00:38]} a6 {[%emt 0:01:32]} 10. e3 {[%emt 0:02:45]} e5 {[%emt 0:06:44]} 11. dxe5 {[%emt 0:02:43]} Qe8 {[%emt 0:00:06]} 12. Qxc4 {[%emt 0:00:08]} Nxe5 {[%emt 0:03:50]} 13. Qxc7 {[%emt 0:02:15]} Bg4 {[%emt 0:00:02]} 14. Nxe5 {[%emt 0:00:24]} Bxd1 {[%emt 0:00:17]} 15. Nd7 {[%emt 0:00:30]} Qc8 {[%emt 0:03:13]} 16. Qxc8 {[%emt 0:02:02]} Rfxc8 {[%emt 0:00:26]} 17. Bxb7 {[%emt 0:00:47]} Rxc3 {[%emt 0:02:23]} 18. Bxa8 {[%emt 0:00:36]} Rc8 {[%emt 0:00:08]} 19. Bd2 {[%emt 0:02:35]} Bg4 {[%emt 0:00:44]} 20. Nb6 {[%emt 0:00:03]} Rb8 {[%emt 0:00:31]} 21. Ba5 {[%emt 0:00:08]} Bxb2 {[%emt 0:00:12]} 22. Rb1 {[%emt 0:00:01]} Be5 {[%emt 0:00:22]} 23. Be4 {[%emt 0:00:30]} Be6 {[%emt 0:00:12]} 24. Rd1 {[%emt 0:02:37]} Bxa2 {[%emt 0:00:08]} 25. Nd7 {[%emt 0:00:02]} Rb5 {[%emt 0:01:10]} 26. Bd8 {[%emt 0:00:23]} Bb3 {[%emt 0:00:41]} 27. Rd2 {[%emt 0:00:57]} Bc3 {[%emt 0:00:30]} 28. Rd6 {[%emt 0:00:22]} Nd5 {[%emt 0:00:25]} 29. Rxa6 {[%emt 0:00:17]} Kg7 {[%emt 0:00:05]} 30. Rc6 {[%emt 0:00:14]} Rb4 {[%emt 0:00:02]} 31. Bf3 {[%emt 0:00:16]} Bb2 {[%emt 0:00:09]} 32. Rc8 {[%emt 0:00:28]} Ra4 {[%emt 0:00:05]} 33. Nc5 {[%emt 0:00:08]} Ra1+ {[%emt 0:00:03]} 34. Kg2 {[%emt 0:00:01]} Ba2 {[%emt 0:00:08]} 35. Ra8 {[%emt 0:00:15]} Bc4 {[%emt 0:00:02]} 36. Rc8 {[%emt 0:00:16]} Bf1+ {[%emt 0:00:03]} 0-1